[Event "Titled Tuesday Blitz November 01 Late 2022"]
[White "Ali Abdullahi, Farah"]
[Black "Harvey, Marcus R"]
[WhiteFideId "16100212"]
[BlackFideId "400092"]
[WhiteElo "2289"]
[BlackElo "2457"]
[Result "0-1"]
[Round "04"]
[TimeControl "180+1"]
[Date "2022.11.02"]
[WhiteClock "0:00:45"]
[BlackClock "0:01:55"]

1. d4 {[%clk 0:02:59]}  Nf6 {[%clk 0:02:56]} 2. Nf3 {[%clk 0:02:59]}  g6 {[%clk 0:02:57]} 3. Bg5 {[%clk 0:02:58]}  Bg7 {[%clk 0:02:57]} 4. c4 {[%clk 0:02:59]}  O-O {[%clk 0:02:56]} 5. Nc3 {[%clk 0:02:59]}  c5 {[%clk 0:02:57]} 6. Bxf6 {[%clk 0:02:59]}  Bxf6 {[%clk 0:02:56]} 7. e3 {[%clk 0:03:00]}  Bg7 {[%clk 0:02:53]} 8. Be2 {[%clk 0:03:00]}  b6 {[%clk 0:02:52]} 9. O-O {[%clk 0:03:00]}  Bb7 {[%clk 0:02:52]} 10. d5 {[%clk 0:03:00]}  e6 {[%clk 0:02:47]} 11. e4 {[%clk 0:02:59]}  Bxc3 {[%clk 0:02:44]} 12. bxc3 {[%clk 0:02:58]}  d6 {[%clk 0:02:44]} 13. Qd2 {[%clk 0:02:55]}  e5 {[%clk 0:02:44]} 14. Qh6 {[%clk 0:02:54]}  Qf6 {[%clk 0:02:44]} 15. Ng5 {[%clk 0:02:53]}  Qg7 {[%clk 0:02:44]} 16. Qxg7+ {[%clk 0:02:51]}  Kxg7 {[%clk 0:02:45]} 17. f4 {[%clk 0:02:51]}  h6 {[%clk 0:02:44]} 18. Nh3 {[%clk 0:02:51]}  exf4 {[%clk 0:02:35]} 19. Rxf4 {[%clk 0:02:47]}  Nd7 {[%clk 0:02:35]} 20. Raf1 {[%clk 0:02:44]}  Ne5 {[%clk 0:02:26]} 21. R4f2 {[%clk 0:02:26]}  Ba6 {[%clk 0:02:23]} 22. Nf4 {[%clk 0:02:22]}  Bxc4 {[%clk 0:02:22]} 23. Bxc4 {[%clk 0:02:19]}  Nxc4 {[%clk 0:02:23]} 24. Nd3 {[%clk 0:02:17]}  Rae8 {[%clk 0:02:21]} 25. Re1 {[%clk 0:02:08]}  f5 {[%clk 0:02:17]} 26. exf5 {[%clk 0:01:58]}  Rxe1+ {[%clk 0:02:18]} 27. Nxe1 {[%clk 0:01:58]}  Rxf5 {[%clk 0:02:18]} 28. Re2 {[%clk 0:01:48]}  Kf7 {[%clk 0:02:16]} 29. Re4 {[%clk 0:01:37]}  Re5 {[%clk 0:02:08]} 30. Rxe5 {[%clk 0:01:35]}  dxe5 {[%clk 0:02:02]} 31. Kf2 {[%clk 0:01:30]}  Ke7 {[%clk 0:02:02]} 32. Kf3 {[%clk 0:01:23]}  Kd6 {[%clk 0:02:00]} 33. Ke4 {[%clk 0:01:22]}  Nd2+ {[%clk 0:02:01]} 34. Kd3 {[%clk 0:01:20]}  Nf1 {[%clk 0:02:01]} 35. c4 {[%clk 0:01:11]}  Nxh2 {[%clk 0:02:01]} 36. Ke4 {[%clk 0:01:08]}  Ng4 {[%clk 0:02:01]} 37. Nf3 {[%clk 0:01:04]}  Nf6+ {[%clk 0:02:01]} 38. Ke3 {[%clk 0:01:02]}  g5 {[%clk 0:02:01]} 39. g3 {[%clk 0:00:58]}  b5 {[%clk 0:01:58]} 40. cxb5 {[%clk 0:00:56]}  Nxd5+ {[%clk 0:01:58]} 41. Ke4 {[%clk 0:00:56]}  Nc3+ {[%clk 0:01:58]} 42. Kf5 {[%clk 0:00:56]}  Nxb5 {[%clk 0:01:59]} 43. Nxe5 {[%clk 0:00:56]}  Kd5 {[%clk 0:01:56]} 44. Nf7 {[%clk 0:00:55]}  Nd6+ {[%clk 0:01:56]} 45. Nxd6 {[%clk 0:00:51]}  Kxd6 {[%clk 0:01:57]} 46. Ke4 {[%clk 0:00:45]}  h5 {[%clk 0:01:55]} 0-1


[Site "https://www.chess.com"]

[Event "Titled Tuesday Blitz November 01 Late 2022"]
[White "Annaberdiyev, Babageldi"]
[Black "Maksimovic, Bojan"]
[WhiteFideId "14000385"]
[BlackFideId "14408120"]
[WhiteElo "2332"]
[BlackElo "2447"]
[Result "0-1"]
[Round "04"]
[TimeControl "180+1"]
[Date "2022.11.01"]
[WhiteClock "0:00:29"]
[BlackClock "0:00:10"]

1. e4 {[%clk 0:03:00]}  g6 {[%clk 0:02:57]} 2. d4 {[%clk 0:03:00]}  Bg7 {[%clk 0:02:58]} 3. Be3 {[%clk 0:03:00]}  d6 {[%clk 0:02:58]} 4. Qd2 {[%clk 0:02:59]}  a6 {[%clk 0:02:56]} 5. Nc3 {[%clk 0:02:55]}  b5 {[%clk 0:02:56]} 6. a4 {[%clk 0:02:55]}  b4 {[%clk 0:02:57]} 7. Nd5 {[%clk 0:02:55]}  a5 {[%clk 0:02:56]} 8. h4 {[%clk 0:02:56]}  e6 {[%clk 0:02:52]} 9. Nf4 {[%clk 0:02:54]}  Bb7 {[%clk 0:02:52]} 10. f3 {[%clk 0:02:53]}  h6 {[%clk 0:02:49]} 11. O-O-O {[%clk 0:02:47]}  Qd7 {[%clk 0:02:45]} 12. Ngh3 {[%clk 0:02:47]}  Qxa4 {[%clk 0:02:45]} 13. Kb1 {[%clk 0:02:44]}  Ne7 {[%clk 0:02:45]} 14. g4 {[%clk 0:02:38]}  Nd7 {[%clk 0:02:33]} 15. Nf2 {[%clk 0:02:35]}  Qc6 {[%clk 0:02:16]} 16. d5 {[%clk 0:02:23]}  exd5 {[%clk 0:02:15]} 17. Nxd5 {[%clk 0:02:24]}  Nxd5 {[%clk 0:01:48]} 18. exd5 {[%clk 0:02:25]}  Qa4 {[%clk 0:01:49]} 19. Bd4 {[%clk 0:02:24]}  b3 {[%clk 0:01:44]} 20. cxb3 {[%clk 0:02:19]}  Qxd4 {[%clk 0:01:44]} 21. Qxd4 {[%clk 0:02:19]}  Bxd4 {[%clk 0:01:45]} 22. Rxd4 {[%clk 0:02:19]}  Nb6 {[%clk 0:01:38]} 23. Bb5+ {[%clk 0:02:17]}  Kd8 {[%clk 0:01:25]} 24. Rhd1 {[%clk 0:02:17]}  Bc8 {[%clk 0:01:07]} 25. Ne4 {[%clk 0:02:06]}  f5 {[%clk 0:01:04]} 26. Nd2 {[%clk 0:02:05]}  fxg4 {[%clk 0:01:02]} 27. fxg4 {[%clk 0:02:06]}  h5 {[%clk 0:01:03]} 28. gxh5 {[%clk 0:01:58]}  Bf5+ {[%clk 0:01:02]} 29. Kc1 {[%clk 0:01:49]}  Rxh5 {[%clk 0:01:02]} 30. Bc6 {[%clk 0:01:43]}  Rb8 {[%clk 0:01:00]} 31. Re1 {[%clk 0:01:43]}  Bd7 {[%clk 0:01:00]} 32. Rde4 {[%clk 0:01:40]}  Rh8 {[%clk 0:00:27]} 33. Re7 {[%clk 0:01:25]}  Bxc6 {[%clk 0:00:27]} 34. dxc6 {[%clk 0:01:24]}  Nd5 {[%clk 0:00:25]} 35. Rd7+ {[%clk 0:01:23]}  Kc8 {[%clk 0:00:25]} 36. Rh7 {[%clk 0:01:14]}  Rd8 {[%clk 0:00:25]} 37. Kb1 {[%clk 0:01:04]}  Rb6 {[%clk 0:00:25]} 38. Rc1 {[%clk 0:01:03]}  Nb4 {[%clk 0:00:25]} 39. Rg7 {[%clk 0:00:59]}  Nxc6 {[%clk 0:00:25]} 40. Rxg6 {[%clk 0:00:57]}  Ne5 {[%clk 0:00:25]} 41. Rg5 {[%clk 0:00:54]}  Rb4 {[%clk 0:00:24]} 42. Nc4 {[%clk 0:00:52]}  Nxc4 {[%clk 0:00:20]} 43. bxc4 {[%clk 0:00:53]}  a4 {[%clk 0:00:17]} 44. Ka2 {[%clk 0:00:48]}  Kd7 {[%clk 0:00:16]} 45. h5 {[%clk 0:00:46]}  Rdb8 {[%clk 0:00:15]} 46. Rc2 {[%clk 0:00:44]}  Rh8 {[%clk 0:00:15]} 47. Rg7+ {[%clk 0:00:42]}  Kc6 {[%clk 0:00:15]} 48. Rh2 {[%clk 0:00:40]}  Rh6 {[%clk 0:00:11]} 49. Rg6 {[%clk 0:00:38]}  Rh7 {[%clk 0:00:10]} 50. h6 {[%clk 0:00:37]}  Rxc4 {[%clk 0:00:10]} 51. Rg7 {[%clk 0:00:37]}  Rxg7 {[%clk 0:00:10]} 52. hxg7 {[%clk 0:00:38]}  Rg4 {[%clk 0:00:11]} 53. Rh7 {[%clk 0:00:31]}  Kb6 {[%clk 0:00:11]} 54. Ka3 {[%clk 0:00:31]}  c5 {[%clk 0:00:11]} 55. Rh6 {[%clk 0:00:31]}  Kc6 {[%clk 0:00:11]} 56. Rh7 {[%clk 0:00:32]}  d5 {[%clk 0:00:09]} 57. Rh6+ {[%clk 0:00:30]}  Kb5 {[%clk 0:00:09]} 58. Rh4 {[%clk 0:00:31]}  Rg3+ {[%clk 0:00:09]} 59. Ka2 {[%clk 0:00:30]}  Rxg7 {[%clk 0:00:10]} 60. Rh5 {[%clk 0:00:31]}  d4 {[%clk 0:00:10]} 61. b3 {[%clk 0:00:30]}  Rg2+ {[%clk 0:00:10]} 62. Ka3 {[%clk 0:00:29]}  Rg3 {[%clk 0:00:10]} 63. Ka2 {[%clk 0:00:29]}  axb3+ {[%clk 0:00:10]} 0-1


[Site "https://www.chess.com"]

[Event "Titled Tuesday Blitz November 01 Late 2022"]
[White "Araujo Sanchez, Josue"]
[Black "McConnell, Griffin"]
[WhiteFideId "6416896"]
[BlackFideId "30942551"]
[WhiteElo "2370"]
[BlackElo "2340"]
[Result "1-0"]
[Round "04"]
[TimeControl "180+1"]
[Date "2022.11.02"]
[WhiteClock "0:02:32"]
[BlackClock "0:01:03"]

1. Nf3 {[%clk 0:03:00]}  Nf6 {[%clk 0:02:59]} 2. g3 {[%clk 0:03:00]}  b6 {[%clk 0:02:58]} 3. Bg2 {[%clk 0:03:01]}  Bb7 {[%clk 0:02:58]} 4. O-O {[%clk 0:03:02]}  e6 {[%clk 0:02:58]} 5. c4 {[%clk 0:03:02]}  Be7 {[%clk 0:02:58]} 6. d4 {[%clk 0:03:02]}  O-O {[%clk 0:02:58]} 7. d5 {[%clk 0:03:02]}  exd5 {[%clk 0:02:56]} 8. Nh4 {[%clk 0:03:03]}  c6 {[%clk 0:02:53]} 9. cxd5 {[%clk 0:03:03]}  Nxd5 {[%clk 0:02:51]} 10. Nf5 {[%clk 0:03:03]}  Nf6 {[%clk 0:02:37]} 11. e4 {[%clk 0:03:01]}  d5 {[%clk 0:02:31]} 12. Nc3 {[%clk 0:03:01]}  Nxe4 {[%clk 0:02:17]} 13. Nxe4 {[%clk 0:02:51]}  dxe4 {[%clk 0:02:18]} 14. Qg4 {[%clk 0:02:45]}  g6 {[%clk 0:02:03]} 15. Rd1 {[%clk 0:02:43]}  Nd7 {[%clk 0:01:31]} 16. Rxd7 {[%clk 0:02:41]}  Qe8 {[%clk 0:01:10]} 17. Rxe7 {[%clk 0:02:38]}  Qd8 {[%clk 0:01:11]} 18. Rxb7 {[%clk 0:02:38]}  Kh8 {[%clk 0:01:10]} 19. Bh6 {[%clk 0:02:35]}  Rg8 {[%clk 0:01:07]} 20. Rxf7 {[%clk 0:02:34]}  Qc8 {[%clk 0:01:03]} 21. Qg5 {[%clk 0:02:32]} 1-0


[Site "https://www.chess.com"]

[Event "Titled Tuesday Blitz November 01 Late 2022"]
[White "Baglan, Esat"]
[Black "Bluebaum, Matthias"]
[WhiteFideId "6309216"]
[BlackFideId "24651516"]
[WhiteElo "2616"]
[BlackElo "2924"]
[Result "0-1"]
[Round "04"]
[TimeControl "180+1"]
[Date "2022.11.02"]
[WhiteClock "0:00:17"]
[BlackClock "0:00:05"]

1. e4 {[%clk 0:02:59]}  e6 {[%clk 0:03:00]} 2. d4 {[%clk 0:02:59]}  d5 {[%clk 0:03:01]} 3. e5 {[%clk 0:03:00]}  c5 {[%clk 0:03:01]} 4. c3 {[%clk 0:03:00]}  Nc6 {[%clk 0:03:01]} 5. Nf3 {[%clk 0:03:01]}  Qb6 {[%clk 0:03:02]} 6. Be2 {[%clk 0:03:01]}  cxd4 {[%clk 0:03:01]} 7. cxd4 {[%clk 0:03:02]}  Nge7 {[%clk 0:03:02]} 8. Na3 {[%clk 0:03:01]}  Nf5 {[%clk 0:03:03]} 9. Nc2 {[%clk 0:03:02]}  Bd7 {[%clk 0:03:03]} 10. O-O {[%clk 0:02:59]}  Na5 {[%clk 0:03:04]} 11. b4 {[%clk 0:02:47]}  Nc4 {[%clk 0:03:03]} 12. a4 {[%clk 0:02:47]}  Rc8 {[%clk 0:02:58]} 13. b5 {[%clk 0:02:44]}  Be7 {[%clk 0:02:54]} 14. Bf4 {[%clk 0:02:28]}  a6 {[%clk 0:02:54]} 15. bxa6 {[%clk 0:02:28]}  Qxa6 {[%clk 0:02:55]} 16. Ne3 {[%clk 0:02:28]}  Nfxe3 {[%clk 0:02:47]} 17. fxe3 {[%clk 0:02:29]}  h6 {[%clk 0:02:46]} 18. Nd2 {[%clk 0:02:10]}  O-O {[%clk 0:02:23]} 19. Bd3 {[%clk 0:02:00]}  Qa5 {[%clk 0:02:15]} 20. Qg4 {[%clk 0:01:34]}  f5 {[%clk 0:02:11]} 21. exf6 {[%clk 0:01:32]}  Rxf6 {[%clk 0:02:11]} 22. Nf3 {[%clk 0:01:29]}  Qc3 {[%clk 0:01:50]} 23. Bxc4 {[%clk 0:01:19]}  Rxc4 {[%clk 0:01:39]} 24. Ne5 {[%clk 0:01:17]}  Rc7 {[%clk 0:01:39]} 25. Ng6 {[%clk 0:01:13]}  Bd8 {[%clk 0:00:52]} 26. Bxc7 {[%clk 0:01:12]}  Qxc7 {[%clk 0:00:46]} 27. Ne5 {[%clk 0:01:10]}  Qd6 {[%clk 0:00:17]} 28. a5 {[%clk 0:00:51]}  Be8 {[%clk 0:00:16]} 29. Rac1 {[%clk 0:00:45]}  Rxf1+ {[%clk 0:00:14]} 30. Rxf1 {[%clk 0:00:46]}  Kh7 {[%clk 0:00:06]} 31. Qe2 {[%clk 0:00:32]}  Bxa5 {[%clk 0:00:06]} 32. Qc2+ {[%clk 0:00:31]}  Kg8 {[%clk 0:00:06]} 33. Qc8 {[%clk 0:00:30]}  Qe7 {[%clk 0:00:06]} 34. Rf7 {[%clk 0:00:25]}  Qd8 {[%clk 0:00:07]} 35. Qxe6 {[%clk 0:00:20]}  Bxf7 {[%clk 0:00:06]} 36. Nxf7 {[%clk 0:00:21]}  Qb6 {[%clk 0:00:03]} 37. Nd6+ {[%clk 0:00:19]}  Kh7 {[%clk 0:00:03]} 38. Qf5+ {[%clk 0:00:18]}  Kh8 {[%clk 0:00:03]} 39. Qf8+ {[%clk 0:00:17]}  Kh7 {[%clk 0:00:03]} 40. Ne8 {[%clk 0:00:17]}  Qb1+ {[%clk 0:00:03]} 41. Kf2 {[%clk 0:00:18]}  Qe1+ {[%clk 0:00:03]} 42. Kf3 {[%clk 0:00:18]}  Qf1+ {[%clk 0:00:03]} 43. Kg4 {[%clk 0:00:17]}  Qxf8 {[%clk 0:00:04]} 44. Nc7 {[%clk 0:00:18]}  Qc8+ {[%clk 0:00:04]} 45. Kh4 {[%clk 0:00:17]}  Qxc7 {[%clk 0:00:05]} 0-1


[Site "https://www.chess.com"]

[Event "Titled Tuesday Blitz November 01 Late 2022"]
[White "Becerra, Juan David"]
[Black "Rorrer, Grayson"]
[WhiteFideId "4404998"]
[BlackFideId "30944996"]
[WhiteElo "2493"]
[BlackElo "2739"]
[Result "1/2-1/2"]
[Round "04"]
[TimeControl "180+1"]
[Date "2022.11.02"]
[WhiteClock "0:00:49"]
[BlackClock "0:00:52"]

1. e4 {[%clk 0:03:00]}  c5 {[%clk 0:02:59]} 2. c3 {[%clk 0:02:58]}  d5 {[%clk 0:02:59]} 3. exd5 {[%clk 0:02:59]}  Qxd5 {[%clk 0:03:00]} 4. d4 {[%clk 0:02:59]}  Nf6 {[%clk 0:03:00]} 5. Nf3 {[%clk 0:02:57]}  Bg4 {[%clk 0:03:01]} 6. Be2 {[%clk 0:02:55]}  e6 {[%clk 0:03:01]} 7. h3 {[%clk 0:02:55]}  Bh5 {[%clk 0:03:01]} 8. c4 {[%clk 0:02:55]}  Qd8 {[%clk 0:03:00]} 9. Nc3 {[%clk 0:02:50]}  cxd4 {[%clk 0:02:51]} 10. Nxd4 {[%clk 0:02:49]}  Bxe2 {[%clk 0:02:51]} 11. Qa4+ {[%clk 0:02:43]}  Qd7 {[%clk 0:02:32]} 12. Qxd7+ {[%clk 0:02:42]}  Nbxd7 {[%clk 0:02:33]} 13. Ndxe2 {[%clk 0:02:40]}  Ne5 {[%clk 0:02:29]} 14. b3 {[%clk 0:02:38]}  Nd3+ {[%clk 0:02:29]} 15. Kf1 {[%clk 0:02:37]}  Bc5 {[%clk 0:02:29]} 16. Be3 {[%clk 0:02:36]}  Bxe3 {[%clk 0:02:28]} 17. fxe3 {[%clk 0:02:37]}  Ke7 {[%clk 0:02:28]} 18. Nf4 {[%clk 0:02:34]}  Rad8 {[%clk 0:02:24]} 19. Ke2 {[%clk 0:02:33]}  Nxf4+ {[%clk 0:02:19]} 20. exf4 {[%clk 0:02:34]}  Nh5 {[%clk 0:02:20]} 21. Ke3 {[%clk 0:02:30]}  Ng3 {[%clk 0:02:14]} 22. Rhd1 {[%clk 0:02:29]}  Nf5+ {[%clk 0:02:14]} 23. Ke4 {[%clk 0:02:28]}  h5 {[%clk 0:01:35]} 24. Rxd8 {[%clk 0:02:24]}  Rxd8 {[%clk 0:01:36]} 25. Rd1 {[%clk 0:02:24]}  Rc8 {[%clk 0:01:35]} 26. g4 {[%clk 0:02:22]}  hxg4 {[%clk 0:01:33]} 27. hxg4 {[%clk 0:02:22]}  Nd6+ {[%clk 0:01:33]} 28. Kf3 {[%clk 0:02:16]}  b6 {[%clk 0:01:18]} 29. Ne4 {[%clk 0:02:10]}  Rd8 {[%clk 0:01:06]} 30. Nxd6 {[%clk 0:02:08]}  Rxd6 {[%clk 0:01:07]} 31. Rxd6 {[%clk 0:01:54]}  Kxd6 {[%clk 0:01:08]} 32. b4 {[%clk 0:01:55]}  f6 {[%clk 0:01:02]} 33. Ke4 {[%clk 0:01:50]}  g6 {[%clk 0:00:59]} 34. g5 {[%clk 0:01:49]}  fxg5 {[%clk 0:00:51]} 35. fxg5 {[%clk 0:01:50]}  a5 {[%clk 0:00:50]} 36. a3 {[%clk 0:01:47]}  e5 {[%clk 0:00:44]} 37. c5+ {[%clk 0:01:11]}  bxc5 {[%clk 0:00:43]} 38. bxc5+ {[%clk 0:01:11]}  Kxc5 {[%clk 0:00:43]} 39. Kxe5 {[%clk 0:01:12]}  Kc4 {[%clk 0:00:44]} 40. Kf6 {[%clk 0:01:12]}  Kb3 {[%clk 0:00:44]} 41. Kxg6 {[%clk 0:01:13]}  Kxa3 {[%clk 0:00:45]} 42. Kf5 {[%clk 0:01:08]}  Kb2 {[%clk 0:00:46]} 43. g6 {[%clk 0:01:09]}  a4 {[%clk 0:00:47]} 44. g7 {[%clk 0:01:09]}  a3 {[%clk 0:00:48]} 45. g8=Q {[%clk 0:01:10]}  a2 {[%clk 0:00:49]} 46. Qg2+ {[%clk 0:01:09]}  Kb1 {[%clk 0:00:49]} 47. Qf1+ {[%clk 0:01:09]}  Kb2 {[%clk 0:00:50]} 48. Qe2+ {[%clk 0:01:09]}  Kb1 {[%clk 0:00:50]} 49. Qd1+ {[%clk 0:01:08]}  Kb2 {[%clk 0:00:51]} 50. Qd2+ {[%clk 0:01:06]}  Kb1 {[%clk 0:00:52]} 51. Qb4+ {[%clk 0:01:06]}  Ka1 {[%clk 0:00:52]} 52. Qc3+ {[%clk 0:00:59]}  Kb1 {[%clk 0:00:53]} 53. Qb3+ {[%clk 0:00:50]}  Ka1 {[%clk 0:00:52]} 54. Ke4 {[%clk 0:00:49]} 1/2-1/2


[Site "https://www.chess.com"]

[Event "Titled Tuesday Blitz November 01 Late 2022"]
[White "Beerdsen, Thomas"]
[Black "Aizpurua, Patrick Emilio"]
[WhiteFideId "1030108"]
[BlackFideId "6600522"]
[WhiteElo "2824"]
[BlackElo "2563"]
[Result "1-0"]
[Round "04"]
[TimeControl "180+1"]
[Date "2022.11.02"]
[WhiteClock "0:02:05"]
[BlackClock "0:01:25"]

1. g4 {[%clk 0:03:00]}  d5 {[%clk 0:02:57]} 2. Bg2 {[%clk 0:03:00]}  c6 {[%clk 0:02:52]} 3. c4 {[%clk 0:03:00]}  dxc4 {[%clk 0:02:51]} 4. Na3 {[%clk 0:02:59]}  h5 {[%clk 0:02:51]} 5. gxh5 {[%clk 0:02:59]}  Nf6 {[%clk 0:02:49]} 6. Nxc4 {[%clk 0:02:58]}  Nxh5 {[%clk 0:02:48]} 7. d3 {[%clk 0:02:58]}  Nd7 {[%clk 0:02:46]} 8. Nf3 {[%clk 0:02:58]}  Qc7 {[%clk 0:02:44]} 9. Qc2 {[%clk 0:02:52]}  Nf4 {[%clk 0:02:43]} 10. Bxf4 {[%clk 0:02:51]}  Qxf4 {[%clk 0:02:43]} 11. e3 {[%clk 0:02:51]}  Qg4 {[%clk 0:02:34]} 12. Rg1 {[%clk 0:02:51]}  Qh5 {[%clk 0:02:33]} 13. O-O-O {[%clk 0:02:50]}  Nb6 {[%clk 0:02:31]} 14. Nd4 {[%clk 0:02:46]}  Bd7 {[%clk 0:02:22]} 15. Kb1 {[%clk 0:02:34]}  e6 {[%clk 0:02:11]} 16. Bf3 {[%clk 0:02:30]}  Qc5 {[%clk 0:02:01]} 17. Nb3 {[%clk 0:02:25]}  Qb5 {[%clk 0:01:55]} 18. Rxg7 {[%clk 0:02:08]}  Rxh2 {[%clk 0:01:41]} 19. Rg8 {[%clk 0:02:06]}  O-O-O {[%clk 0:01:40]} 20. Rxf8 {[%clk 0:02:06]}  Rxf8 {[%clk 0:01:29]} 21. Nd6+ {[%clk 0:02:05]}  Kb8 {[%clk 0:01:30]} 22. Nxb5 {[%clk 0:02:06]}  cxb5 {[%clk 0:01:30]} 23. Nc5 {[%clk 0:02:07]}  Bc8 {[%clk 0:01:29]} 24. Qc3 {[%clk 0:02:07]}  f6 {[%clk 0:01:28]} 25. Qd4 {[%clk 0:02:05]}  Rxf2 {[%clk 0:01:25]} 1-0


[Site "https://www.chess.com"]

[Event "Titled Tuesday Blitz November 01 Late 2022"]
[White "Bernat, David"]
[Black "Krishnan, Varun"]
[WhiteFideId "2099225"]
[BlackFideId "5054508"]
[WhiteElo "2291"]
[BlackElo "2491"]
[Result "0-1"]
[Round "04"]
[TimeControl "180+1"]
[Date "2022.11.02"]
[WhiteClock "0:00:01"]
[BlackClock "0:00:54"]

1. c4 {[%clk 0:03:00]}  Nf6 {[%clk 0:02:59]} 2. Nc3 {[%clk 0:03:01]}  e5 {[%clk 0:02:58]} 3. g3 {[%clk 0:03:01]}  c6 {[%clk 0:02:57]} 4. Nf3 {[%clk 0:03:00]}  e4 {[%clk 0:02:55]} 5. Nd4 {[%clk 0:03:00]}  d5 {[%clk 0:02:55]} 6. cxd5 {[%clk 0:03:01]}  cxd5 {[%clk 0:02:56]} 7. Bg2 {[%clk 0:03:01]}  a6 {[%clk 0:02:55]} 8. a4 {[%clk 0:03:00]}  Bc5 {[%clk 0:02:55]} 9. Nb3 {[%clk 0:02:59]}  Ba7 {[%clk 0:02:55]} 10. d3 {[%clk 0:02:58]}  exd3 {[%clk 0:02:48]} 11. Qxd3 {[%clk 0:02:58]}  Be6 {[%clk 0:02:48]} 12. O-O {[%clk 0:02:51]}  O-O {[%clk 0:02:48]} 13. Rd1 {[%clk 0:02:50]}  Ng4 {[%clk 0:02:43]} 14. e3 {[%clk 0:02:41]}  Qf6 {[%clk 0:02:36]} 15. Qe2 {[%clk 0:02:29]}  Nc6 {[%clk 0:02:13]} 16. Nxd5 {[%clk 0:02:17]}  Qe5 {[%clk 0:02:11]} 17. h3 {[%clk 0:01:56]}  Nf6 {[%clk 0:02:04]} 18. Nxf6+ {[%clk 0:01:54]}  Qxf6 {[%clk 0:02:04]} 19. Nd4 {[%clk 0:01:36]}  Nxd4 {[%clk 0:01:53]} 20. exd4 {[%clk 0:01:36]}  Bxd4 {[%clk 0:01:53]} 21. Bg5 {[%clk 0:01:17]}  Qxg5 {[%clk 0:01:47]} 22. Rxd4 {[%clk 0:01:16]}  Qc5 {[%clk 0:01:47]} 23. Rad1 {[%clk 0:01:10]}  Rab8 {[%clk 0:01:47]} 24. b4 {[%clk 0:01:08]}  Qc3 {[%clk 0:01:45]} 25. Qd2 {[%clk 0:01:06]}  Qa3 {[%clk 0:01:42]} 26. a5 {[%clk 0:00:58]}  b6 {[%clk 0:01:42]} 27. Rd6 {[%clk 0:00:28]}  bxa5 {[%clk 0:01:39]} 28. bxa5 {[%clk 0:00:29]}  Bc4 {[%clk 0:01:28]} 29. Qd4 {[%clk 0:00:23]}  Bb5 {[%clk 0:01:24]} 30. Ra1 {[%clk 0:00:20]}  Qb3 {[%clk 0:01:20]} 31. Bd5 {[%clk 0:00:17]}  Qc2 {[%clk 0:01:20]} 32. Re1 {[%clk 0:00:15]}  Qc7 {[%clk 0:01:11]} 33. Rb6 {[%clk 0:00:11]}  Rbd8 {[%clk 0:01:08]} 34. Qe4 {[%clk 0:00:07]}  Qc3 {[%clk 0:01:03]} 35. Qe3 {[%clk 0:00:03]}  Qxe3 {[%clk 0:00:59]} 36. Rxe3 {[%clk 0:00:04]}  Rxd5 {[%clk 0:00:59]} 37. Re7 {[%clk 0:00:04]}  h6 {[%clk 0:00:56]} 38. Kh2 {[%clk 0:00:02]}  Rd2 {[%clk 0:00:56]} 39. Kg2 {[%clk 0:00:02]}  Ra2 {[%clk 0:00:56]} 40. g4 {[%clk 0:00:01]}  Rxa5 {[%clk 0:00:55]} 41. h4 {[%clk 0:00:02]}  Ra1 {[%clk 0:00:54]} 42. g5 {[%clk 0:00:02]}  hxg5 {[%clk 0:00:53]} 43. hxg5 {[%clk 0:00:03]}  g6 {[%clk 0:00:54]} 44. Rb8 {[%clk 0:00:01]} 0-1


[Site "https://www.chess.com"]

[Event "Titled Tuesday Blitz November 01 Late 2022"]
[White "Bersamina, Paulo"]
[Black "D`Arruda, Ricardo D."]
[WhiteFideId "5206995"]
[BlackFideId "100692"]
[WhiteElo "2332"]
[BlackElo "2490"]
[Result "1-0"]
[Round "04"]
[TimeControl "180+1"]
[Date "2022.11.02"]
[WhiteClock "0:01:21"]
[BlackClock "0:00:07"]

1. e4 {[%clk 0:03:00]}  c5 {[%clk 0:02:59]} 2. Nc3 {[%clk 0:03:00]}  Nc6 {[%clk 0:02:58]} 3. Nf3 {[%clk 0:03:00]}  e6 {[%clk 0:02:58]} 4. d4 {[%clk 0:03:00]}  cxd4 {[%clk 0:02:58]} 5. Nxd4 {[%clk 0:03:01]}  a6 {[%clk 0:02:58]} 6. g3 {[%clk 0:03:00]}  d6 {[%clk 0:02:58]} 7. Bg2 {[%clk 0:02:59]}  Nf6 {[%clk 0:02:48]} 8. O-O {[%clk 0:02:55]}  Be7 {[%clk 0:02:45]} 9. Nxc6 {[%clk 0:02:55]}  bxc6 {[%clk 0:02:46]} 10. e5 {[%clk 0:02:54]}  Nd5 {[%clk 0:02:46]} 11. exd6 {[%clk 0:02:53]}  Bxd6 {[%clk 0:02:47]} 12. Ne4 {[%clk 0:02:53]}  Be7 {[%clk 0:02:47]} 13. c4 {[%clk 0:02:53]}  Nb6 {[%clk 0:02:30]} 14. Qxd8+ {[%clk 0:02:52]}  Kxd8 {[%clk 0:02:17]} 15. Rd1+ {[%clk 0:02:51]}  Ke8 {[%clk 0:02:13]} 16. Nd6+ {[%clk 0:02:52]}  Bxd6 {[%clk 0:02:12]} 17. Bxc6+ {[%clk 0:02:51]}  Ke7 {[%clk 0:02:08]} 18. Bxa8 {[%clk 0:02:49]}  Nxa8 {[%clk 0:02:09]} 19. Be3 {[%clk 0:02:48]}  Nc7 {[%clk 0:02:03]} 20. b3 {[%clk 0:02:43]}  Bb7 {[%clk 0:01:52]} 21. Rd2 {[%clk 0:02:42]}  Bc6 {[%clk 0:01:43]} 22. Rad1 {[%clk 0:02:41]}  Bb4 {[%clk 0:01:43]} 23. Rd3 {[%clk 0:02:41]}  e5 {[%clk 0:01:39]} 24. f4 {[%clk 0:02:40]}  e4 {[%clk 0:01:35]} 25. Rd4 {[%clk 0:02:41]}  Bc5 {[%clk 0:01:18]} 26. Rxe4+ {[%clk 0:02:40]}  Bxe4 {[%clk 0:01:18]} 27. Bxc5+ {[%clk 0:02:40]}  Kf6 {[%clk 0:01:09]} 28. Rd6+ {[%clk 0:02:39]}  Ne6 {[%clk 0:01:08]} 29. Rxa6 {[%clk 0:02:39]}  Ra8 {[%clk 0:01:06]} 30. Bd4+ {[%clk 0:02:39]}  Kf5 {[%clk 0:00:58]} 31. Rxa8 {[%clk 0:02:40]}  Bxa8 {[%clk 0:00:58]} 32. Be3 {[%clk 0:02:32]}  Ke4 {[%clk 0:00:58]} 33. Kf2 {[%clk 0:02:32]}  Kd3 {[%clk 0:00:53]} 34. g4 {[%clk 0:02:23]}  g6 {[%clk 0:00:49]} 35. h4 {[%clk 0:02:19]}  f5 {[%clk 0:00:47]} 36. gxf5 {[%clk 0:02:11]}  gxf5 {[%clk 0:00:46]} 37. h5 {[%clk 0:02:02]}  Kc3 {[%clk 0:00:42]} 38. Kg3 {[%clk 0:01:56]}  Kb2 {[%clk 0:00:39]} 39. b4 {[%clk 0:01:54]}  Kxa2 {[%clk 0:00:39]} 40. b5 {[%clk 0:01:53]}  Kb3 {[%clk 0:00:27]} 41. c5 {[%clk 0:01:52]}  Kc4 {[%clk 0:00:27]} 42. b6 {[%clk 0:01:51]}  Kd5 {[%clk 0:00:18]} 43. h6 {[%clk 0:01:32]}  Bc6 {[%clk 0:00:16]} 44. Kh4 {[%clk 0:01:27]}  Ke4 {[%clk 0:00:11]} 45. Bc1 {[%clk 0:01:25]}  Nxc5 {[%clk 0:00:08]} 46. Kg5 {[%clk 0:01:24]}  Nd7 {[%clk 0:00:09]} 47. Bd2 {[%clk 0:01:21]}  Bb7 {[%clk 0:00:07]} 48. Bc1 {[%clk 0:01:21]} 1-0


[Site "https://www.chess.com"]